[Event "Titled Tuesday Blitz June 28 Late 2022"]
[White "Gurevich, Dmitry"]
[Black "Martinez, Shawn"]
[WhiteFideId "2000407"]
[BlackFideId "2039770"]
[WhiteElo "2506"]
[BlackElo "2174"]
[Result "1-0"]
[Round "07"]
[TimeControl "180+1"]
[Date "2022.06.29"]
[WhiteClock "0:00:11"]
[BlackClock "0:00:02"]

1. d4 {[%clk 0:03:00]}  g6 {[%clk 0:02:48]} 2. e4 {[%clk 0:02:59]}  Bg7 {[%clk 0:02:48]} 3. Nf3 {[%clk 0:02:58]}  h6 {[%clk 0:02:47]} 4. c3 {[%clk 0:02:58]}  b6 {[%clk 0:02:46]} 5. Bd3 {[%clk 0:02:58]}  Bb7 {[%clk 0:02:46]} 6. O-O {[%clk 0:02:58]}  a6 {[%clk 0:02:44]} 7. Re1 {[%clk 0:02:57]}  d6 {[%clk 0:02:45]} 8. a4 {[%clk 0:02:57]}  e6 {[%clk 0:02:44]} 9. Nbd2 {[%clk 0:02:54]}  Ne7 {[%clk 0:02:44]} 10. Qe2 {[%clk 0:02:49]}  Nd7 {[%clk 0:02:43]} 11. Nc4 {[%clk 0:02:41]}  O-O {[%clk 0:02:31]} 12. e5 {[%clk 0:02:36]}  Bxf3 {[%clk 0:02:14]} 13. Qxf3 {[%clk 0:02:34]}  dxe5 {[%clk 0:02:15]} 14. Nxe5 {[%clk 0:02:23]}  Nxe5 {[%clk 0:01:52]} 15. dxe5 {[%clk 0:02:22]}  c5 {[%clk 0:01:48]} 16. Bf4 {[%clk 0:02:18]}  Qc7 {[%clk 0:01:43]} 17. h4 {[%clk 0:02:09]}  Nf5 {[%clk 0:01:33]} 18. Bxf5 {[%clk 0:02:04]}  gxf5 {[%clk 0:01:22]} 19. Rad1 {[%clk 0:01:59]}  Rfd8 {[%clk 0:01:11]} 20. Rd6 {[%clk 0:01:59]}  Bf8 {[%clk 0:01:11]} 21. Rdd1 {[%clk 0:01:46]}  b5 {[%clk 0:01:07]} 22. axb5 {[%clk 0:01:43]}  axb5 {[%clk 0:01:07]} 23. g4 {[%clk 0:01:39]}  Rxd1 {[%clk 0:00:49]} 24. Rxd1 {[%clk 0:01:38]}  Ra4 {[%clk 0:00:48]} 25. gxf5 {[%clk 0:01:34]}  exf5 {[%clk 0:00:47]} 26. Kh1 {[%clk 0:01:28]}  Qe7 {[%clk 0:00:35]} 27. Rg1+ {[%clk 0:01:24]}  Bg7 {[%clk 0:00:22]} 28. Qg3 {[%clk 0:01:22]}  f6 {[%clk 0:00:17]} 29. e6 {[%clk 0:01:15]}  Kh8 {[%clk 0:00:10]} 30. Bd6 {[%clk 0:00:55]}  Qb7+ {[%clk 0:00:09]} 31. f3 {[%clk 0:00:49]}  Rg4 {[%clk 0:00:09]} 32. Qf2 {[%clk 0:00:38]}  Qd5 {[%clk 0:00:08]} 33. e7 {[%clk 0:00:33]}  Rxg1+ {[%clk 0:00:04]} 34. Kxg1 {[%clk 0:00:31]}  Qe6 {[%clk 0:00:04]} 35. Kf1 {[%clk 0:00:25]}  Kg8 {[%clk 0:00:04]} 36. Qe2 {[%clk 0:00:23]}  Qxe2+ {[%clk 0:00:04]} 37. Kxe2 {[%clk 0:00:24]}  Kf7 {[%clk 0:00:04]} 38. Bxc5 {[%clk 0:00:24]}  h5 {[%clk 0:00:04]} 39. Kd3 {[%clk 0:00:21]}  Bh6 {[%clk 0:00:04]} 40. c4 {[%clk 0:00:21]}  bxc4+ {[%clk 0:00:03]} 41. Kxc4 {[%clk 0:00:21]}  Bf4 {[%clk 0:00:03]} 42. Kd5 {[%clk 0:00:19]}  Bg3 {[%clk 0:00:03]} 43. b4 {[%clk 0:00:16]}  Bxh4 {[%clk 0:00:03]} 44. b5 {[%clk 0:00:16]}  Bg3 {[%clk 0:00:03]} 45. b6 {[%clk 0:00:14]}  Ke8 {[%clk 0:00:02]} 46. b7 {[%clk 0:00:11]} 1-0


[Site "https://www.chess.com"]

[Event "Titled Tuesday Blitz June 28 Late 2022"]
[White "Howell, David W L"]
[Black "Tanenbaum, Zachary"]
[WhiteFideId "410608"]
[BlackFideId "2060850"]
[WhiteElo "2559"]
[BlackElo "2175"]
[Result "0-1"]
[Round "07"]
[TimeControl "180+1"]
[Date "2022.06.28"]
[WhiteClock "0:00:01"]
[BlackClock "0:00:15"]

1. g4 {[%clk 0:02:47]}  e5 {[%clk 0:02:59]} 2. Bg2 {[%clk 0:02:46]}  h5 {[%clk 0:02:59]} 3. d4 {[%clk 0:02:35]}  exd4 {[%clk 0:02:57]} 4. g5 {[%clk 0:02:34]}  Nc6 {[%clk 0:02:55]} 5. Nf3 {[%clk 0:02:30]}  Bc5 {[%clk 0:02:49]} 6. Nbd2 {[%clk 0:02:26]}  f6 {[%clk 0:02:31]} 7. Nb3 {[%clk 0:02:23]}  Bb6 {[%clk 0:02:30]} 8. Qd3 {[%clk 0:02:21]}  Qe7 {[%clk 0:02:25]} 9. a3 {[%clk 0:02:12]}  d5 {[%clk 0:02:18]} 10. Bf4 {[%clk 0:01:50]}  Qe4 {[%clk 0:01:33]} 11. Qd2 {[%clk 0:01:39]}  Bf5 {[%clk 0:01:15]} 12. O-O-O {[%clk 0:01:32]}  Na5 {[%clk 0:01:08]} 13. Nxa5 {[%clk 0:01:00]}  Bxa5 {[%clk 0:01:09]} 14. b4 {[%clk 0:01:01]}  Bb6 {[%clk 0:01:05]} 15. Nh4 {[%clk 0:00:38]}  Qe6 {[%clk 0:01:04]} 16. e4 {[%clk 0:00:33]}  dxe4 {[%clk 0:00:58]} 17. Nxf5 {[%clk 0:00:21]}  Qa2 {[%clk 0:00:28]} 18. Qxd4 {[%clk 0:00:21]}  Bxd4 {[%clk 0:00:27]} 19. Rxd4 {[%clk 0:00:22]}  Ne7 {[%clk 0:00:21]} 20. Rxe4 {[%clk 0:00:12]}  Qa1+ {[%clk 0:00:20]} 21. Kd2 {[%clk 0:00:12]}  O-O-O+ {[%clk 0:00:21]} 22. Ke2 {[%clk 0:00:11]}  Qxa3 {[%clk 0:00:19]} 23. Nxe7+ {[%clk 0:00:11]}  Kb8 {[%clk 0:00:19]} 24. Rc4 {[%clk 0:00:06]}  Qa6 {[%clk 0:00:16]} 25. Bxc7+ {[%clk 0:00:04]}  Ka8 {[%clk 0:00:16]} 26. Bxd8 {[%clk 0:00:01]}  Qxc4+ {[%clk 0:00:15]} 27. Ke3 {[%clk 0:00:01]}  Rxd8 {[%clk 0:00:15]} 28. gxf6 {[%clk 0:00:01]}  Qc3+ {[%clk 0:00:15]} 0-1


[Site "https://www.chess.com"]

[Event "Titled Tuesday Blitz June 28 Late 2022"]
[White "Ipek, Egehan"]
[Black "Mirzoev, Azer"]
[WhiteFideId "44523793"]
[BlackFideId "13400304"]
[WhiteElo "1413"]
[BlackElo "2525"]
[Result "0-1"]
[Round "07"]
[TimeControl "180+1"]
[Date "2022.06.29"]
[WhiteClock "0:00:01"]
[BlackClock "0:00:10"]

1. c4 {[%clk 0:03:00]}  Nf6 {[%clk 0:02:58]} 2. Nf3 {[%clk 0:03:01]}  c5 {[%clk 0:02:57]} 3. g3 {[%clk 0:02:59]}  b6 {[%clk 0:02:58]} 4. Bg2 {[%clk 0:03:00]}  Bb7 {[%clk 0:02:59]} 5. O-O {[%clk 0:03:00]}  e6 {[%clk 0:02:59]} 6. b3 {[%clk 0:03:00]}  Be7 {[%clk 0:02:58]} 7. Bb2 {[%clk 0:03:01]}  O-O {[%clk 0:02:58]} 8. d4 {[%clk 0:03:01]}  cxd4 {[%clk 0:02:58]} 9. Qxd4 {[%clk 0:03:02]}  Nc6 {[%clk 0:02:53]} 10. Qf4 {[%clk 0:02:57]}  Qb8 {[%clk 0:02:53]} 11. Qxb8 {[%clk 0:02:32]}  Raxb8 {[%clk 0:02:53]} 12. Nc3 {[%clk 0:02:32]}  Rfd8 {[%clk 0:02:46]} 13. Rfd1 {[%clk 0:02:31]}  a6 {[%clk 0:02:37]} 14. Rac1 {[%clk 0:02:23]}  Ba8 {[%clk 0:02:37]} 15. Na4 {[%clk 0:01:47]}  b5 {[%clk 0:02:28]} 16. cxb5 {[%clk 0:01:47]}  axb5 {[%clk 0:02:28]} 17. Nc5 {[%clk 0:01:47]}  d6 {[%clk 0:02:21]} 18. Na6 {[%clk 0:01:18]}  Rb6 {[%clk 0:02:14]} 19. Nc7 {[%clk 0:01:18]}  Bb7 {[%clk 0:02:12]} 20. Nd4 {[%clk 0:01:15]}  Na7 {[%clk 0:01:54]} 21. Bxb7 {[%clk 0:00:56]}  Rxb7 {[%clk 0:01:53]} 22. Na6 {[%clk 0:00:56]}  b4 {[%clk 0:01:12]} 23. Nc6 {[%clk 0:00:45]}  Nxc6 {[%clk 0:01:12]} 24. Rxc6 {[%clk 0:00:43]}  Ra8 {[%clk 0:01:05]} 25. Rdc1 {[%clk 0:00:40]}  Bf8 {[%clk 0:00:47]} 26. R1c2 {[%clk 0:00:26]}  h5 {[%clk 0:00:37]} 27. Bc1 {[%clk 0:00:25]}  d5 {[%clk 0:00:23]} 28. Bd2 {[%clk 0:00:22]}  Ne4 {[%clk 0:00:21]} 29. Be1 {[%clk 0:00:22]}  g5 {[%clk 0:00:18]} 30. f3 {[%clk 0:00:18]}  Nf6 {[%clk 0:00:16]} 31. Kg2 {[%clk 0:00:12]}  g4 {[%clk 0:00:15]} 32. h3 {[%clk 0:00:11]}  gxf3+ {[%clk 0:00:14]} 33. exf3 {[%clk 0:00:11]}  Nd7 {[%clk 0:00:12]} 34. Kf2 {[%clk 0:00:07]}  Ne5 {[%clk 0:00:12]} 35. Nc7 {[%clk 0:00:03]}  Raa7 {[%clk 0:00:10]} 36. R6c5 {[%clk 0:00:02]}  Bxc5+ {[%clk 0:00:09]} 37. Rxc5 {[%clk 0:00:01]}  Nd3+ {[%clk 0:00:09]} 38. Ke3 {[%clk 0:00:01]}  Nxc5 {[%clk 0:00:10]} 39. Nb5 {[%clk 0:00:01]}  Rxb5 {[%clk 0:00:10]} 0-1


[Site "https://www.chess.com"]

[Event "Titled Tuesday Blitz June 28 Late 2022"]
[White "Jaskolka, Tomasz"]
[Black "Adla, Diego"]
[WhiteFideId "1170791"]
[BlackFideId "100072"]
[WhiteElo "2465"]
[BlackElo "2598"]
[Result "1-0"]
[Round "07"]
[TimeControl "180+1"]
[Date "2022.06.29"]
[WhiteClock "0:00:17"]
[BlackClock "0:00:01"]

1. d4 {[%clk 0:03:00]}  Nf6 {[%clk 0:02:59]} 2. Bf4 {[%clk 0:03:01]}  e6 {[%clk 0:02:56]} 3. e3 {[%clk 0:03:01]}  b6 {[%clk 0:02:56]} 4. Nd2 {[%clk 0:03:01]}  Bb7 {[%clk 0:02:56]} 5. Ngf3 {[%clk 0:03:01]}  c5 {[%clk 0:02:56]} 6. Nc4 {[%clk 0:03:01]}  Be7 {[%clk 0:01:54]} 7. Nd6+ {[%clk 0:03:00]}  Bxd6 {[%clk 0:01:54]} 8. Bxd6 {[%clk 0:03:00]}  Ne4 {[%clk 0:01:53]} 9. dxc5 {[%clk 0:03:01]}  bxc5 {[%clk 0:01:51]} 10. Be2 {[%clk 0:02:46]}  Qb6 {[%clk 0:01:34]} 11. Be5 {[%clk 0:02:25]}  d6 {[%clk 0:01:34]} 12. Bg3 {[%clk 0:02:21]}  Qxb2 {[%clk 0:01:24]} 13. O-O {[%clk 0:02:21]}  Nc3 {[%clk 0:01:23]} 14. Qd2 {[%clk 0:02:14]}  Nxe2+ {[%clk 0:01:23]} 15. Qxe2 {[%clk 0:02:10]}  Ba6 {[%clk 0:01:23]} 16. Qd2 {[%clk 0:02:06]}  Bxf1 {[%clk 0:01:22]} 17. Rxf1 {[%clk 0:02:07]}  O-O {[%clk 0:01:19]} 18. Qxd6 {[%clk 0:02:07]}  Qxa2 {[%clk 0:00:56]} 19. Rd1 {[%clk 0:02:02]}  Na6 {[%clk 0:00:50]} 20. Be5 {[%clk 0:01:55]}  f6 {[%clk 0:00:45]} 21. Ra1 {[%clk 0:01:22]}  Qd5 {[%clk 0:00:39]} 22. Qxd5 {[%clk 0:01:21]}  exd5 {[%clk 0:00:39]} 23. Bd6 {[%clk 0:01:22]}  Rfe8 {[%clk 0:00:18]} 24. Rxa6 {[%clk 0:00:47]}  Re6 {[%clk 0:00:18]} 25. Nd2 {[%clk 0:00:45]}  Rd8 {[%clk 0:00:15]} 26. Rxa7 {[%clk 0:00:45]}  Rexd6 {[%clk 0:00:15]} 27. Kf1 {[%clk 0:00:46]}  Rc6 {[%clk 0:00:14]} 28. Ke2 {[%clk 0:00:46]}  c4 {[%clk 0:00:12]} 29. Nf3 {[%clk 0:00:46]}  c3 {[%clk 0:00:12]} 30. Nd4 {[%clk 0:00:46]}  Rc4 {[%clk 0:00:10]} 31. Ne6 {[%clk 0:00:32]}  Re8 {[%clk 0:00:09]} 32. Nxg7 {[%clk 0:00:32]}  Re5 {[%clk 0:00:09]} 33. h3 {[%clk 0:00:26]}  h5 {[%clk 0:00:07]} 34. f3 {[%clk 0:00:20]}  h4 {[%clk 0:00:06]} 35. Kd3 {[%clk 0:00:17]}  Rc6 {[%clk 0:00:03]} 36. f4 {[%clk 0:00:17]}  Re4 {[%clk 0:00:01]} 37. Nf5 {[%clk 0:00:17]}  Rce6 {[%clk 0:00:01]} 38. Nh6+ {[%clk 0:00:17]}  Kf8 {[%clk 0:00:01]} 39. Ng4 {[%clk 0:00:17]} 1-0


[Site "https://www.chess.com"]

[Event "Titled Tuesday Blitz June 28 Late 2022"]
[White "Jorajuria Mendoza, Algol"]
[Black "Przybylski, Wojciech"]
[WhiteFideId "5128897"]
[BlackFideId "1117599"]
[WhiteElo "1600"]
[BlackElo "2133"]
[Result "1-0"]
[Round "07"]
[TimeControl "180+1"]
[Date "2022.06.28"]
[WhiteClock "0:00:13"]
[BlackClock "0:00:02"]

1. e4 {[%clk 0:03:00]}  c5 {[%clk 0:02:59]} 2. Nc3 {[%clk 0:03:00]}  e6 {[%clk 0:02:59]} 3. g3 {[%clk 0:02:59]}  h5 {[%clk 0:02:58]} 4. h4 {[%clk 0:02:52]}  Nf6 {[%clk 0:02:55]} 5. Bg2 {[%clk 0:02:49]}  Nc6 {[%clk 0:02:54]} 6. d3 {[%clk 0:02:44]}  d5 {[%clk 0:02:39]} 7. exd5 {[%clk 0:02:42]}  exd5 {[%clk 0:02:38]} 8. Bg5 {[%clk 0:02:42]}  Be6 {[%clk 0:02:37]} 9. Nge2 {[%clk 0:02:39]}  Be7 {[%clk 0:02:29]} 10. Nf4 {[%clk 0:02:37]}  d4 {[%clk 0:02:29]} 11. Nxe6 {[%clk 0:02:33]}  fxe6 {[%clk 0:02:28]} 12. Nb1 {[%clk 0:01:39]}  Qb6 {[%clk 0:02:25]} 13. b3 {[%clk 0:01:32]}  O-O-O {[%clk 0:02:15]} 14. Nd2 {[%clk 0:01:31]}  Ne5 {[%clk 0:02:07]} 15. Bf4 {[%clk 0:01:28]}  Bd6 {[%clk 0:02:03]} 16. Qe2 {[%clk 0:01:24]}  Qc7 {[%clk 0:01:50]} 17. O-O {[%clk 0:01:16]}  Rhe8 {[%clk 0:01:43]} 18. a4 {[%clk 0:01:04]}  Neg4 {[%clk 0:01:34]} 19. Bg5 {[%clk 0:00:54]}  Qf7 {[%clk 0:01:00]} 20. a5 {[%clk 0:00:49]}  a6 {[%clk 0:00:45]} 21. Nc4 {[%clk 0:00:44]}  Be7 {[%clk 0:00:21]} 22. Qf3 {[%clk 0:00:36]}  Bd6 {[%clk 0:00:14]} 23. Rab1 {[%clk 0:00:26]}  Ne5 {[%clk 0:00:05]} 24. Nxe5 {[%clk 0:00:26]}  Bxe5 {[%clk 0:00:06]} 25. b4 {[%clk 0:00:27]}  c4 {[%clk 0:00:06]} 26. b5 {[%clk 0:00:24]}  Qc7 {[%clk 0:00:01]} 27. bxa6 {[%clk 0:00:23]}  Nd5 {[%clk 0:00:01]} 28. axb7+ {[%clk 0:00:22]}  Kb8 {[%clk 0:00:01]} 29. dxc4 {[%clk 0:00:19]}  Rf8 {[%clk 0:00:01]} 30. Qe4 {[%clk 0:00:18]}  Nc3 {[%clk 0:00:01]} 31. Qd3 {[%clk 0:00:13]}  Na4 {[%clk 0:00:02]} 32. a6 {[%clk 0:00:12]}  Nc5 {[%clk 0:00:02]} 33. Qa3 {[%clk 0:00:13]} 1-0


[Site "https://www.chess.com"]

[Event "Titled Tuesday Blitz June 28 Late 2022"]
[White "Katz, Alexander"]
[Black "Souleidis, Georgios"]
[WhiteFideId "2039796"]
[BlackFideId "4206827"]
[WhiteElo "2371"]
[BlackElo "2401"]
[Result "1-0"]
[Round "07"]
[TimeControl "180+1"]
[Date "2022.06.28"]
[WhiteClock "0:00:55"]
[BlackClock "0:00:09"]

1. e4 {[%clk 0:03:00]}  e5 {[%clk 0:02:58]} 2. Nf3 {[%clk 0:02:59]}  d6 {[%clk 0:02:59]} 3. d4 {[%clk 0:02:59]}  Bg4 {[%clk 0:02:59]} 4. dxe5 {[%clk 0:02:56]}  Nd7 {[%clk 0:02:59]} 5. exd6 {[%clk 0:02:50]}  Bxd6 {[%clk 0:03:00]} 6. Nc3 {[%clk 0:02:48]}  Qe7 {[%clk 0:03:00]} 7. h3 {[%clk 0:02:42]}  Bh5 {[%clk 0:02:59]} 8. Be2 {[%clk 0:02:30]}  O-O-O {[%clk 0:02:56]} 9. Be3 {[%clk 0:02:28]}  Ngf6 {[%clk 0:02:56]} 10. Qd4 {[%clk 0:02:17]}  Bc5 {[%clk 0:02:51]} 11. Nd5 {[%clk 0:01:58]}  Nxd5 {[%clk 0:01:13]} 12. Qxd5 {[%clk 0:01:59]}  Bxe3 {[%clk 0:01:13]} 13. Qxh5 {[%clk 0:01:50]}  Bb6 {[%clk 0:01:09]} 14. O-O {[%clk 0:01:44]}  g6 {[%clk 0:00:38]} 15. Qh4 {[%clk 0:01:40]}  f6 {[%clk 0:00:22]} 16. Rad1 {[%clk 0:01:36]}  h5 {[%clk 0:00:21]} 17. Rfe1 {[%clk 0:01:02]}  g5 {[%clk 0:00:21]} 18. Qg3 {[%clk 0:01:03]}  Rhg8 {[%clk 0:00:21]} 19. Bc4 {[%clk 0:01:01]}  Rg7 {[%clk 0:00:20]} 20. e5 {[%clk 0:01:00]}  Nxe5 {[%clk 0:00:15]} 21. Rxd8+ {[%clk 0:00:58]}  Qxd8 {[%clk 0:00:16]} 22. Nxe5 {[%clk 0:00:59]}  fxe5 {[%clk 0:00:15]} 23. Qxe5 {[%clk 0:00:59]}  Qh8 {[%clk 0:00:11]} 24. Qe6+ {[%clk 0:00:56]}  Kd8 {[%clk 0:00:09]} 25. Rd1+ {[%clk 0:00:55]} 1-0


[Site "https://www.chess.com"]

[Event "Titled Tuesday Blitz June 28 Late 2022"]
[White "Kim, Sergey"]
[Black "Estrada Nieto, Julian"]
[WhiteFideId "13700570"]
[BlackFideId "5101018"]
[WhiteElo "2594"]
[BlackElo "2459"]
[Result "1/2-1/2"]
[Round "07"]
[TimeControl "180+1"]
[Date "2022.06.29"]
[WhiteClock "0:00:20"]
[BlackClock "0:00:13"]

1. d4 {[%clk 0:03:00]}  d5 {[%clk 0:03:00]} 2. c4 {[%clk 0:03:00]}  dxc4 {[%clk 0:02:59]} 3. e3 {[%clk 0:03:00]}  Nf6 {[%clk 0:02:58]} 4. Bxc4 {[%clk 0:02:59]}  e6 {[%clk 0:02:55]} 5. Nf3 {[%clk 0:03:00]}  a6 {[%clk 0:02:55]} 6. O-O {[%clk 0:02:58]}  c5 {[%clk 0:02:54]} 7. Qe2 {[%clk 0:02:57]}  Nc6 {[%clk 0:02:50]} 8. Rd1 {[%clk 0:02:56]}  Qc7 {[%clk 0:02:46]} 9. Nc3 {[%clk 0:02:54]}  b5 {[%clk 0:02:44]} 10. Bb3 {[%clk 0:02:53]}  Bb7 {[%clk 0:02:34]} 11. d5 {[%clk 0:02:52]}  exd5 {[%clk 0:02:34]} 12. Nxd5 {[%clk 0:02:52]}  Nxd5 {[%clk 0:02:34]} 13. Bxd5 {[%clk 0:02:53]}  Be7 {[%clk 0:02:33]} 14. e4 {[%clk 0:02:52]}  O-O {[%clk 0:02:33]} 15. Be3 {[%clk 0:02:49]}  Nb4 {[%clk 0:02:29]} 16. Bxb7 {[%clk 0:02:46]}  Qxb7 {[%clk 0:02:29]} 17. a3 {[%clk 0:02:46]}  Nc6 {[%clk 0:02:28]} 18. Rd5 {[%clk 0:02:39]}  Rad8 {[%clk 0:02:06]} 19. Rad1 {[%clk 0:02:31]}  c4 {[%clk 0:02:04]} 20. Bg5 {[%clk 0:02:21]}  Bxg5 {[%clk 0:01:59]} 21. Nxg5 {[%clk 0:02:20]}  h6 {[%clk 0:01:57]} 22. Nf3 {[%clk 0:02:19]}  Qe7 {[%clk 0:01:56]} 23. Qe3 {[%clk 0:02:08]}  Rfe8 {[%clk 0:01:38]} 24. h3 {[%clk 0:01:43]}  Rc8 {[%clk 0:01:16]} 25. e5 {[%clk 0:01:38]}  b4 {[%clk 0:01:14]} 26. axb4 {[%clk 0:01:31]}  Qxb4 {[%clk 0:01:03]} 27. R1d2 {[%clk 0:01:24]}  Re7 {[%clk 0:00:57]} 28. Nd4 {[%clk 0:01:13]}  Nxd4 {[%clk 0:00:56]} 29. R5xd4 {[%clk 0:01:12]}  Rce8 {[%clk 0:00:54]} 30. f4 {[%clk 0:01:11]}  f6 {[%clk 0:00:42]} 31. Rd8 {[%clk 0:01:08]}  fxe5 {[%clk 0:00:41]} 32. fxe5 {[%clk 0:01:04]}  Qb5 {[%clk 0:00:37]} 33. Rxe8+ {[%clk 0:00:59]}  Rxe8 {[%clk 0:00:30]} 34. e6 {[%clk 0:00:54]}  Qg5 {[%clk 0:00:25]} 35. Qxg5 {[%clk 0:00:51]}  hxg5 {[%clk 0:00:25]} 36. Rd6 {[%clk 0:00:51]}  a5 {[%clk 0:00:25]} 37. Ra6 {[%clk 0:00:48]}  Kf8 {[%clk 0:00:24]} 38. Kf2 {[%clk 0:00:41]}  Rb8 {[%clk 0:00:24]} 39. Rxa5 {[%clk 0:00:36]}  Rxb2+ {[%clk 0:00:23]} 40. Kf3 {[%clk 0:00:37]}  c3 {[%clk 0:00:20]} 41. Rxg5 {[%clk 0:00:35]}  c2 {[%clk 0:00:20]} 42. Rc5 {[%clk 0:00:35]}  Ke7 {[%clk 0:00:20]} 43. Rc6 {[%clk 0:00:35]}  Kf6 {[%clk 0:00:15]} 44. h4 {[%clk 0:00:33]}  g6 {[%clk 0:00:14]} 45. g3 {[%clk 0:00:29]}  Rb3+ {[%clk 0:00:14]} 46. Kg4 {[%clk 0:00:27]}  Rb4+ {[%clk 0:00:14]} 47. Kh3 {[%clk 0:00:27]}  Rb2 {[%clk 0:00:13]} 48. Kg4 {[%clk 0:00:27]}  Rb4+ {[%clk 0:00:13]} 49. Kf3 {[%clk 0:00:26]}  Rb3+ {[%clk 0:00:13]} 50. Kf2 {[%clk 0:00:26]}  Rb2 {[%clk 0:00:14]} 51. Ke3 {[%clk 0:00:26]}  Rb3+ {[%clk 0:00:13]} 52. Kf2 {[%clk 0:00:21]}  Rb2 {[%clk 0:00:13]} 53. Kf3 {[%clk 0:00:20]}  Rb3+ {[%clk 0:00:13]} 1/2-1/2


[Site "https://www.chess.com"]

[Event "Titled Tuesday Blitz June 28 Late 2022"]
[White "Korchmar, Vasiliy"]
[Black "Barria Zuniga, Daniel"]
[WhiteFideId "24131750"]
[BlackFideId "3400816"]
[WhiteElo "2370"]
[BlackElo "2414"]
[Result "0-1"]
[Round "07"]
[TimeControl "180+1"]
[Date "2022.06.28"]
[WhiteClock "0:00:01"]
[BlackClock "0:00:53"]

1. e4 {[%clk 0:03:00]}  c5 {[%clk 0:02:58]} 2. Nf3 {[%clk 0:03:01]}  e6 {[%clk 0:02:59]} 3. d4 {[%clk 0:03:01]}  cxd4 {[%clk 0:02:59]} 4. Nxd4 {[%clk 0:03:02]}  a6 {[%clk 0:02:59]} 5. Nc3 {[%clk 0:02:57]}  Qc7 {[%clk 0:02:58]} 6. g3 {[%clk 0:02:55]}  Bb4 {[%clk 0:02:56]} 7. Bd2 {[%clk 0:02:46]}  Nc6 {[%clk 0:02:56]} 8. Nb3 {[%clk 0:02:38]}  Nf6 {[%clk 0:02:55]} 9. Bg2 {[%clk 0:02:38]}  O-O {[%clk 0:02:55]} 10. O-O {[%clk 0:02:39]}  Be7 {[%clk 0:02:45]} 11. f4 {[%clk 0:02:36]}  b5 {[%clk 0:02:44]} 12. e5 {[%clk 0:02:34]}  Ne8 {[%clk 0:02:44]} 13. a4 {[%clk 0:02:29]}  b4 {[%clk 0:02:42]} 14. Ne4 {[%clk 0:02:30]}  d6 {[%clk 0:02:42]} 15. exd6 {[%clk 0:02:00]}  Nxd6 {[%clk 0:02:43]} 16. Nec5 {[%clk 0:02:01]}  Nc4 {[%clk 0:02:25]} 17. Qf3 {[%clk 0:01:36]}  Nxd2 {[%clk 0:02:08]} 18. Qxc6 {[%clk 0:01:33]}  Ra7 {[%clk 0:01:55]} 19. Rfd1 {[%clk 0:00:44]}  Nc4 {[%clk 0:01:53]} 20. Nd3 {[%clk 0:00:21]}  Ne3 {[%clk 0:01:49]} 21. Rd2 {[%clk 0:00:18]}  Nxg2 {[%clk 0:01:48]} 22. Qxc7 {[%clk 0:00:18]}  Rxc7 {[%clk 0:01:46]} 23. Kxg2 {[%clk 0:00:19]}  Bb7+ {[%clk 0:01:45]} 24. Kf2 {[%clk 0:00:19]}  Rfc8 {[%clk 0:01:45]} 25. Rc1 {[%clk 0:00:09]}  Bd5 {[%clk 0:01:45]} 26. Nd4 {[%clk 0:00:08]}  f6 {[%clk 0:01:33]} 27. Nf3 {[%clk 0:00:03]}  Bc6 {[%clk 0:01:21]} 28. b3 {[%clk 0:00:02]}  Bd5 {[%clk 0:01:21]} 29. Nde1 {[%clk 0:00:02]}  Bc5+ {[%clk 0:01:19]} 30. Ke2 {[%clk 0:00:03]}  a5 {[%clk 0:01:18]} 31. f5 {[%clk 0:00:03]}  Kf7 {[%clk 0:01:13]} 32. fxe6+ {[%clk 0:00:03]}  Kxe6 {[%clk 0:01:14]} 33. Nd4+ {[%clk 0:00:04]}  Bxd4 {[%clk 0:01:12]} 34. Rxd4 {[%clk 0:00:04]}  Ke5 {[%clk 0:01:11]} 35. Rd2 {[%clk 0:00:04]}  Be4 {[%clk 0:01:10]} 36. Nd3+ {[%clk 0:00:03]}  Bxd3+ {[%clk 0:01:10]} 37. Kxd3 {[%clk 0:00:03]}  Rc3+ {[%clk 0:01:10]} 38. Ke2 {[%clk 0:00:03]}  Rxb3 {[%clk 0:01:09]} 39. Re1 {[%clk 0:00:01]}  Rbc3 {[%clk 0:01:06]} 40. Kf2+ {[%clk 0:00:01]}  Kf5 {[%clk 0:01:06]} 41. Rd5+ {[%clk 0:00:01]}  Kg6 {[%clk 0:01:06]} 42. Rxa5 {[%clk 0:00:02]}  Rxc2+ {[%clk 0:01:06]} 43. Kf3 {[%clk 0:00:02]}  R8c3+ {[%clk 0:01:06]} 44. Kg4 {[%clk 0:00:01]}  h5+ {[%clk 0:01:05]} 45. Kf4 {[%clk 0:00:02]}  Rf2+ {[%clk 0:00:53]} 46. Ke4 {[%clk 0:00:02]}  b3 {[%clk 0:00:52]} 47. Rb5 {[%clk 0:00:01]}  Rxh2 {[%clk 0:00:53]} 48. Rb1 {[%clk 0:00:01]}  Rg2 {[%clk 0:00:52]} 49. R1xb3 {[%clk 0:00:01]}  Rgxg3 {[%clk 0:00:52]} 50. Rxc3 {[%clk 0:00:01]}  Rxc3 {[%clk 0:00:53]} 0-1


[Site "https://www.chess.com"]

[Event "Titled Tuesday Blitz June 28 Late 2022"]
[White "Kuzmin, Roman"]
[Black "Hua, Lefong"]
[WhiteFideId "44134932"]
[BlackFideId "2602253"]
[WhiteElo "1968"]
[BlackElo "2592"]
[Result "0-1"]
[Round "07"]
[TimeControl "180+1"]
[Date "2022.06.29"]
[WhiteClock "0:00:01"]
[BlackClock "0:00:13"]

1. e4 {[%clk 0:03:00]}  c5 {[%clk 0:02:59]} 2. Nf3 {[%clk 0:03:01]}  g6 {[%clk 0:03:00]} 3. d4 {[%clk 0:03:01]}  cxd4 {[%clk 0:03:00]} 4. Nxd4 {[%clk 0:03:01]}  Bg7 {[%clk 0:03:01]} 5. Nc3 {[%clk 0:03:02]}  Nc6 {[%clk 0:02:58]} 6. Be3 {[%clk 0:03:02]}  Nf6 {[%clk 0:02:58]} 7. Nxc6 {[%clk 0:03:02]}  bxc6 {[%clk 0:02:58]} 8. e5 {[%clk 0:03:03]}  Nd5 {[%clk 0:02:58]} 9. Nxd5 {[%clk 0:03:03]}  cxd5 {[%clk 0:02:59]} 10. Qxd5 {[%clk 0:03:03]}  Rb8 {[%clk 0:02:58]} 11. Bc4 {[%clk 0:02:52]}  O-O {[%clk 0:02:53]} 12. O-O {[%clk 0:02:50]}  Bb7 {[%clk 0:02:38]} 13. Qd3 {[%clk 0:02:47]}  a5 {[%clk 0:02:12]} 14. Bd4 {[%clk 0:02:40]}  Qc7 {[%clk 0:02:09]} 15. Rfe1 {[%clk 0:02:28]}  Qc6 {[%clk 0:01:57]} 16. f3 {[%clk 0:02:26]}  Rfc8 {[%clk 0:01:56]} 17. b3 {[%clk 0:02:17]}  Qc7 {[%clk 0:01:44]} 18. Rad1 {[%clk 0:02:14]}  Bc6 {[%clk 0:01:42]} 19. f4 {[%clk 0:01:58]}  a4 {[%clk 0:01:35]} 20. f5 {[%clk 0:01:57]}  e6 {[%clk 0:01:21]} 21. f6 {[%clk 0:01:30]}  Bf8 {[%clk 0:01:15]} 22. h4 {[%clk 0:01:20]}  axb3 {[%clk 0:01:08]} 23. axb3 {[%clk 0:01:21]}  Ra8 {[%clk 0:01:02]} 24. h5 {[%clk 0:01:20]}  Qb7 {[%clk 0:01:03]} 25. hxg6 {[%clk 0:01:18]}  fxg6 {[%clk 0:00:49]} 26. Qg3 {[%clk 0:00:44]}  Be4 {[%clk 0:00:35]} 27. Re2 {[%clk 0:00:13]}  Rxc4 {[%clk 0:00:29]} 28. bxc4 {[%clk 0:00:13]}  Bf5 {[%clk 0:00:29]} 29. Rf1 {[%clk 0:00:13]}  Kf7 {[%clk 0:00:28]} 30. Rxf5 {[%clk 0:00:12]}  exf5 {[%clk 0:00:28]} 31. Qh4 {[%clk 0:00:10]}  h5 {[%clk 0:00:28]} 32. Qf4 {[%clk 0:00:07]}  Qc6 {[%clk 0:00:26]} 33. Qe3 {[%clk 0:00:03]}  Qxc4 {[%clk 0:00:24]} 34. e6+ {[%clk 0:00:02]}  Qxe6 {[%clk 0:00:24]} 35. Qd3 {[%clk 0:00:02]}  Qd5 {[%clk 0:00:22]} 36. c4 {[%clk 0:00:02]}  Qc6 {[%clk 0:00:16]} 37. Qb3 {[%clk 0:00:01]}  Ra3 {[%clk 0:00:15]} 38. Qb2 {[%clk 0:00:01]}  Qxc4 {[%clk 0:00:14]} 39. Re1 {[%clk 0:00:01]}  Bd6 {[%clk 0:00:14]} 40. Qb7 {[%clk 0:00:01]}  Qxd4+ {[%clk 0:00:13]} 0-1


[Site "https://www.chess.com"]